bitfinex-derivatives/quotes_ETHF0:USTF0_20260119
["timestamp","ask_amount","ask_price","bid_price","bid_amount"]
[1768785961253,0.00466374,3215.1,3214.0,1.795]
[1768785962147,0.00466374,3215.1,3213.9,0.15564]
[1768785962352,0.00466374,3215.1,3213.3,0.0028642]
[1768785962353,4.18540102,3215.0,3213.3,0.0028642]
[1768785962552,0.91425867,3214.9,3213.3,0.0028642]
[1768785962754,0.91425867,3214.8,3213.3,0.0028642]
[1768785962954,3.27104828,3215.0,3213.3,0.0028642]
[1768785963160,0.91406364,3214.9,3213.3,0.0028642]
[1768785963460,0.91406364,3214.8,3213.3,0.0028642]
[1768785963663,3.27104828,3215.0,3213.3,0.0028642]
[1768785963857,0.91378452,3214.9,3213.3,0.0028642]
[1768785964162,0.91378452,3214.8,3213.3,0.0028642]
[1768785964460,0.91378452,3214.7,3213.3,0.0028642]
[1768785964664,0.91378452,3214.6,3213.3,0.0028642]
[1768785964955,0.00466374,3215.1,3213.4,3.46212016]
[1768785965159,0.00466374,3215.1,3213.7,3.61777016]
[1768785965763,0.00466374,3215.1,3213.8,0.15564]
[1768785966063,0.00466374,3215.1,3213.8,3.46212016]
[1768785966364,1.1094206,3216.1,3214.2,3.46212016]
[1768785966956,0.91503439,3216.0,3214.2,3.46212016]
[1768785967366,0.91503439,3216.0,3214.1,1.95063]
[1768785967367,3.27104828,3215.9,3214.1,1.95063]
[1768785967663,0.91503439,3215.8,3214.1,1.95063]
[1768785967964,0.91503439,3215.8,3214.1,5.41275016]
[1768785968264,0.91503439,3215.8,3214.2,3.46212016]
[1768785969757,3.27104828,3215.7,3213.4,3.61778016]
[1768785970060,0.00466374,3215.3,3213.6,3.46212016]
[1768785970364,0.91401628,3215.2,3213.6,3.46212016]
[1768785970662,0.91401628,3215.1,3213.6,3.46212016]
[1768785970866,0.00466374,3215.3,3213.6,3.46212016]
[1768785971056,0.91382512,3215.2,3213.6,3.46212016]
[1768785971256,0.91382512,3215.1,3213.5,0.15566]
[1768785971465,0.91377584,3215.0,3213.5,0.15566]
[1768785971666,0.00466374,3215.3,3213.5,3.61778016]
[1768785971869,0.91373723,3215.2,3213.5,3.61778016]
[1768785972056,4.18478551,3215.1,3213.0,3.46212016]
[1768785972259,3.27104828,3214.9,3213.0,3.46212016]
[1768785972459,0.91373723,3214.8,3214.0,0.00466374]
[1768785972652,3.27104828,3214.9,3213.0,3.46212016]
[1768785972857,0.91351199,3214.8,3213.0,3.46212016]
[1768785973058,0.91351199,3214.7,3213.0,3.46212016]
[1768785973266,0.91351199,3214.6,3213.0,3.46212016]
[1768785973460,3.27104828,3214.9,3213.0,3.46212016]
[1768785973665,0.9130447,3214.8,3213.3,3.46498436]
[1768785973868,0.00466374,3215.3,3213.5,3.46212016]
[1768785974063,0.91322321,3215.2,3213.5,3.46212016]
[1768785974264,0.00466374,3215.3,3213.5,3.46212016]
[1768785974466,0.91356852,3215.2,3213.5,3.46212016]
[1768785974666,0.00466374,3215.3,3213.5,3.46212016]
[1768785974869,0.00466374,3215.3,3213.7,3.46212016]
[1768785975163,0.00466374,3215.3,3214.0,3.4667839]
[1768785978872,0.00466374,3215.3,3214.3,3.46212016]
[1768785979668,0.00466374,3215.3,3214.2,0.15562]
[1768785981779,0.00466374,3215.3,3214.2,3.61774016]
[1768785982275,0.00305612,3216.2,3214.5,3.61773016]
[1768785982572,0.91375837,3216.1,3214.6,3.61773016]
[1768785982773,0.00305612,3216.2,3214.8,3.46068944]
[1768785982971,0.00305612,3216.2,3214.9,0.15559]
[1768785983565,0.00466374,3215.9,3214.9,0.15559]
[1768785986385,0.00466374,3215.9,3214.9,3.46067944]
[1768785986879,0.00466374,3215.9,3214.9,3.30508944]
[1768785987073,0.00305612,3216.2,3215.3,3.30508944]
[1768785987380,0.00305612,3216.2,3215.3,3.46065944]
[1768785988080,0.15548,3217.3,3215.3,3.46065944]
[1768785988278,0.91350265,3217.2,3215.4,3.46065944]
[1768785988466,0.91350265,3217.1,3215.4,3.46065944]
[1768785988670,3.6201313,3217.3,3216.0,0.00466374]
[1768785988869,0.9130427,3217.2,3216.0,0.00466374]
[1768785989068,0.9130427,3217.1,3216.0,0.00845022]
[1768785989271,0.00364793,3217.2,3216.0,0.00845022]
[1768785991281,0.15549,3217.1,3216.0,0.00845022]
[1768785991483,3.4646513,3217.0,3214.9,3.46067944]
[1768785992085,3.4646513,3217.0,3215.0,0.15558]
[1768785992389,0.15549,3217.1,3215.3,3.30508944]
[1768785993077,0.00364793,3217.2,3215.3,3.30508944]
[1768785993486,0.00364793,3217.2,3215.5,3.46064944]
[1768785994786,3.46829923,3217.2,3215.5,0.15556]
[1768785995087,3.46829923,3217.2,3215.0,5.09808944]
[1768785995285,4.37711591,3217.1,3215.0,5.09808944]
[1768785995485,0.91246461,3217.0,3215.0,5.09808944]
[1768785996381,0.00466374,3216.3,3215.0,5.09808944]
[1768785997280,3.46931504,3216.3,3214.9,0.00300969]
[1768785998575,3.62484504,3216.3,3214.9,0.00300969]
[1768785998776,3.29923407,3216.1,3214.9,0.00300969]
[1768785998979,3.29923407,3215.9,3213.8,1.793]
[1768785999187,0.91156447,3215.8,3213.9,3.37006292]
[1768785999387,3.29923407,3215.9,3213.9,3.37006292]
[1768785999587,0.91126161,3215.8,3213.9,3.37006292]
[1768785999787,3.29923407,3215.9,3213.9,3.37006292]
[1768785999992,3.29923407,3215.7,3213.9,3.3727564]
[1768786000680,3.29923407,3215.7,3213.9,0.00269348]
[1768786000881,3.29923407,3214.9,3212.9,3.37006292]
[1768786001787,4.20978307,3214.8,3212.9,3.37378148]
[1768786001993,3.29923407,3214.8,3212.9,3.37378148]
[1768786002592,0.00466374,3214.2,3212.9,3.37378148]
[1768786005689,0.00281398,3214.9,3213.8,1.85844014]
[1768786005889,0.00281398,3214.9,3213.8,5.22850306]
[1768786006583,0.00281398,3214.9,3213.9,3.37006292]
[1768786006785,3.29923407,3215.9,3213.9,3.52570292]
[1768786007396,3.29923407,3215.9,3214.6,0.00466374]
[1768786007794,3.30273209,3215.9,3214.6,0.00466374]
[1768786008403,0.00466374,3215.6,3214.6,0.00466374]
[1768786009700,3.30389781,3215.6,3214.6,0.00466374]
[1768786010695,0.00466374,3215.6,3214.6,0.00466374]
[1768786013508,3.56253682,3215.6,3214.6,0.00466374]
[1768786019998,3.56253682,3215.6,3213.4,5.04140693]
[1768786020210,3.55787308,3215.4,3213.5,3.24840693]
[1768786021496,3.55787308,3215.4,3213.5,3.40406693]
[1768786021709,0.00466374,3215.6,3213.8,3.40404693]
[1768786022408,3.56253682,3215.6,3213.8,3.40404693]
[1768786022706,3.55787308,3215.4,3213.8,3.40404693]
[1768786022902,3.55787308,3215.4,3213.3,1.85844014]
[1768786023202,0.91190092,3215.3,3213.6,3.24840693]
[1768786023409,0.16022374,3215.6,3213.6,3.24840693]
[1768786023610,0.91188261,3215.5,3213.6,3.24840693]
[1768786023803,0.16022374,3215.6,3213.6,3.24840693]
[1768786024005,0.91190285,3215.5,3214.2,0.00466374]
[1768786024202,0.9125845,3215.4,3214.2,0.00466374]
[1768786024407,0.00466374,3215.6,3214.2,0.00466374]
[1768786024804,0.00466374,3215.6,3214.2,3.40869067]
[1768786025005,0.00466374,3215.6,3214.5,3.40401693]
[1768786025205,0.00466374,3215.6,3214.6,0.1556]
[1768786025401,0.00349802,3215.9,3214.7,3.24840693]
[1768786026308,0.83245356,3216.8,3214.9,3.40399693]
[1768786026512,0.91348744,3216.8,3215.3,1.85844014]
[1768786026711,0.83245356,3217.1,3215.4,3.24840693]
[1768786027415,0.8354539,3217.1,3215.9,0.00466374]
[1768786027711,0.91354995,3217.0,3215.9,0.00466374]
[1768786027907,3.55787308,3216.8,3215.4,0.00381449]
[1768786028110,3.55787308,3216.6,3215.4,0.00381449]
[1768786028304,3.55787308,3216.4,3215.4,0.00381449]
[1768786028506,0.91354995,3216.3,3215.4,0.00381449]
[1768786028711,3.55787308,3216.4,3215.4,0.00381449]
[1768786028919,0.91266727,3216.3,3215.4,0.00381449]
[1768786029111,3.55787308,3216.4,3215.4,0.00381449]
[1768786029412,0.91274039,3216.3,3215.4,0.00381449]
[1768786029713,0.91740413,3216.2,3215.4,0.00381449]
[1768786029914,0.00466374,3216.2,3215.4,0.00381449]
[1768786030502,0.91250208,3216.1,3215.4,0.00381449]
[1768786030705,0.00466374,3216.2,3215.4,0.00381449]
[1768786031202,0.00466374,3216.2,3215.5,0.00466374]
[1768786031621,3.56253682,3216.2,3215.4,0.00381449]
[1768786031807,3.55787308,3216.0,3214.1,3.24840693]
[1768786032809,3.55787308,3216.0,3214.1,3.25136523]
[1768786033015,3.55787308,3215.8,3214.1,3.25136523]
[1768786033216,0.91242386,3215.7,3214.1,3.25136523]
[1768786033415,4.47029694,3215.7,3214.1,0.0029583]
[1768786033618,4.47029694,3215.6,3214.1,0.0029583]
[1768786033914,3.55787308,3215.6,3214.1,0.0029583]
[1768786034315,0.91337043,3215.5,3214.1,0.0029583]
[1768786034520,3.55787308,3215.6,3214.1,0.0029583]
[1768786034709,0.91334321,3215.5,3214.1,0.0029583]
[1768786035016,3.55787308,3215.6,3214.1,0.0029583]
[1768786035212,0.91331701,3215.5,3214.1,0.0029583]
[1768786035408,0.91331701,3215.4,3214.1,0.0029583]
[1768786035609,0.91371196,3215.3,3214.1,0.0029583]
[1768786035809,0.91371196,3215.2,3214.1,0.0029583]
[1768786036114,0.83245356,3215.5,3214.1,0.0029583]
[1768786036115,4.39032664,3215.6,3214.1,0.0029583]
[1768786036317,0.91373025,3215.5,3214.1,0.0029583]
[1768786036613,4.47160333,3215.4,3214.1,0.0029583]
[1768786036823,4.39032664,3214.9,3212.8,0.15569]
[1768786037111,0.91373025,3214.8,3213.0,3.40408693]
[1768786037315,0.91373025,3214.7,3213.0,3.40408693]
[1768786037510,0.00466374,3214.1,3213.0,3.40408693]
[1768786037909,0.00837472,3214.1,3213.0,3.40682682]
[1768786038309,0.83245356,3214.9,3213.1,0.15567]
[1768786038508,0.83245356,3215.1,3213.2,3.24840693]
[1768786038709,1.74541071,3215.1,3213.2,3.24840693]
[1768786039308,0.91295715,3215.0,3213.2,3.24840693]
[1768786039514,0.91295715,3214.9,3213.2,3.24840693]
[1768786039713,4.39405123,3215.2,3213.2,3.40407693]
[1768786039915,0.91277452,3215.1,3213.4,3.24840693]
[1768786040219,0.00372459,3215.2,3213.9,0.00466374]
[1768786040415,0.91277886,3215.1,3213.9,0.00466374]
[1768786040618,0.00372459,3215.2,3213.9,0.00466374]
[1768786040818,0.91277811,3215.1,3213.9,0.00466374]
[1768786041016,0.00372459,3215.2,3213.9,3.25307067]
[1768786041214,0.00466374,3214.8,3213.9,0.00466374]
[1768786044518,0.00466374,3214.8,3213.9,3.29398017]
[1768786044720,0.00372459,3215.2,3213.9,3.29398017]
[1768786044920,0.00372459,3215.2,3213.9,3.44962017]
[1768786046819,0.00372459,3215.2,3214.0,0.15563]
[1768786047020,0.00372459,3215.2,3214.1,3.44494643]
[1768786047228,0.00372459,3215.2,3214.3,3.28931643]
[1768786048117,0.83245356,3216.1,3214.4,3.44492643]
[1768786048316,1.74492638,3216.1,3214.4,3.44492643]
[1768786048625,0.91247282,3216.0,3214.4,3.44492643]
[1768786048824,0.91247282,3215.9,3214.4,3.44492643]
[1768786049029,0.83245356,3216.1,3214.4,3.44492643]
[1768786049224,0.00263861,3215.9,3214.4,3.44492643]
[1768786050920,0.00263861,3215.9,3214.9,3.44490643]
[1768786051117,0.83245356,3216.8,3215.1,0.15558]
[1768786051323,0.91291484,3216.7,3215.2,3.28931643]
[1768786051521,0.83245356,3217.0,3215.2,3.28931643]
[1768786051723,5.00070877,3217.0,3215.6,0.00466374]
[1768786052030,0.91290752,3216.9,3215.6,0.00733094]
[1768786052231,0.91290752,3216.8,3215.6,0.00733094]
[1768786052425,4.09045324,3217.0,3215.6,0.00733094]
[1768786052624,0.91264443,3216.9,3215.6,0.00733094]
[1768786052816,3.25534769,3216.6,3215.6,0.00733094]
[1768786053020,4.16799212,3216.5,3215.6,0.00733094]
[1768786053221,0.91264443,3216.4,3215.6,0.00733094]
[1768786053514,3.25534769,3216.5,3215.6,0.00733094]
[1768786053722,0.91246375,3216.4,3215.6,0.00733094]
[1768786053921,0.91242336,3216.3,3214.7,3.28931643]
[1768786054118,3.25534769,3216.5,3214.7,3.28931643]
[1768786054330,0.91240002,3216.4,3214.7,3.28931643]
[1768786054529,3.25534769,3216.5,3214.7,3.28931643]
[1768786054831,0.91216829,3216.4,3214.7,3.29248922]
[1768786055031,3.25534769,3216.5,3215.3,0.00466374]
[1768786055217,0.91216403,3216.4,3215.3,0.00466374]
[1768786055422,0.83245356,3216.9,3215.3,0.00466374]
[1768786055727,1.74465474,3216.9,3215.3,0.00466374]
[1768786056129,4.16754887,3216.9,3215.3,0.00466374]
[1768786056331,0.91220118,3216.8,3215.3,0.00466374]
[1768786056537,0.91220118,3216.7,3215.3,0.00466374]
[1768786056729,4.08780125,3216.9,3215.3,0.00466374]
[1768786057020,0.91170055,3216.8,3215.3,3.29398017]
[1768786057228,0.83510555,3217.0,3215.3,3.29398017]
[1768786057229,0.00265199,3217.0,3215.3,3.29398017]
[1768786057424,0.91165553,3216.9,3215.3,3.29398017]
[1768786057631,0.91165553,3216.8,3215.3,3.29398017]
[1768786057830,0.00265199,3217.0,3215.3,3.29398017]
[1768786058030,0.91127318,3216.9,3215.3,3.29398017]
[1768786058230,0.91127318,3216.8,3215.3,3.29398017]
[1768786058438,0.00265199,3217.0,3215.3,3.29398017]
[1768786058636,0.911221,3216.9,3215.3,3.29398017]
[1768786058831,0.00265199,3217.0,3215.3,3.29398017]
[1768786059034,0.91121731,3216.9,3215.3,3.29398017]
[1768786059237,3.60120962,3217.0,3215.3,0.00466374]
[1768786059438,3.44306763,3216.8,3215.3,0.00466374]
[1768786059734,0.91023473,3216.7,3215.3,0.00466374]
[1768786059934,3.44306763,3216.8,3215.3,0.00466374]
[1768786060633,0.83510555,3217.0,3215.3,3.32223713]
[1768786060835,0.00265199,3217.0,3215.5,3.31757339]
[1768786061033,0.00265199,3217.0,3215.5,3.47313339]
[1768786061429,0.00265199,3217.0,3215.7,3.47312339]
[1768786061629,0.00466374,3216.6,3215.7,3.47312339]
[1768786061934,0.00265199,3217.0,3216.0,3.47311339]
[1768786062134,3.44306763,3217.8,3216.0,3.47311339]
[1768786062330,3.44306763,3217.8,3216.1,3.31757339]
[1768786062535,4.27552119,3218.1,3216.1,3.31757339]
[1768786062738,4.35262452,3218.0,3216.1,3.31757339]
[1768786063038,0.90955689,3217.9,3216.1,3.47310339]
[1768786063234,3.44705387,3218.0,3216.1,3.47310339]
[1768786064051,3.44705387,3218.0,3216.2,0.15552]
[1768786064239,0.00398624,3218.0,3216.4,3.31757339]
[1768786065636,3.44705387,3218.0,3216.4,3.31757339]
[1768786065939,3.44705387,3218.0,3216.0,1.791]
[1768786066332,3.59853763,3217.5,3215.4,0.15556]
[1768786068039,0.90797801,3217.4,3215.4,0.15556]
[1768786068239,3.44306763,3217.2,3215.4,0.15556]
[1768786068632,3.44306763,3217.2,3215.4,3.47313339]
[1768786071241,0.90860733,3217.1,3215.4,3.47313339]
[1768786071548,3.44306763,3217.2,3215.4,3.47313339]
[1768786071733,0.90865826,3217.1,3215.4,3.47313339]
[1768786071933,3.44306763,3217.2,3215.4,3.47313339]
[1768786072130,0.90866959,3217.1,3215.4,3.47313339]
[1768786072343,3.44306763,3217.2,3215.4,3.47313339]
[1768786072540,0.9091006,3217.1,3215.4,3.47313339]
[1768786072742,3.44306763,3217.2,3215.4,3.47313339]
[1768786073040,0.90911656,3217.1,3215.4,3.47313339]
[1768786073242,0.90911656,3217.0,3215.4,3.47313339]
[1768786073442,3.44306763,3217.2,3215.4,3.47313339]
[1768786073744,3.29953462,3216.7,3214.7,0.00317279]
[1768786074242,3.29953462,3216.7,3215.0,3.39309022]
[1768786074543,0.1555,3216.8,3215.0,3.39309022]
[1768786075044,3.29953462,3217.2,3215.3,3.39775396]
[1768786075245,0.91097363,3217.1,3215.3,3.39775396]
[1768786075546,3.29953462,3216.9,3215.3,0.00466374]
[1768786075744,3.29953462,3216.6,3215.3,0.00466374]
[1768786076243,4.21030935,3216.5,3215.3,0.00466374]
[1768786076548,0.91077473,3216.4,3215.3,0.00466374]
[1768786077250,0.00466374,3216.2,3215.3,0.00466374]
[1768786080644,3.30419836,3216.2,3214.7,0.00317279]
[1768786080845,3.29953462,3215.8,3214.7,0.00317279]
[1768786081044,4.21099812,3215.7,3214.7,0.00317279]
[1768786081245,0.9114635,3215.6,3214.7,0.00317279]
[1768786081450,0.9114635,3215.6,3213.8,3.54873022]
[1768786082044,0.9114635,3215.6,3214.4,0.00466374]
[1768786082236,3.30264295,3215.7,3214.4,0.00466374]
[1768786082441,3.30264295,3215.7,3214.4,0.00861704]
[1768786082641,0.91063152,3215.6,3214.4,0.00861704]
[1768786082842,3.30264295,3215.7,3214.4,0.00861704]
[1768786083655,3.29953462,3215.2,3213.3,3.54876022]
[1768786083948,0.91010765,3215.1,3213.3,3.54876022]
[1768786084141,3.29953462,3215.2,3213.3,3.54876022]
[1768786084450,3.29953462,3215.2,3213.3,3.55116388]
[1768786084855,0.00466374,3214.6,3213.3,3.55116388]
[1768786085040,0.00466374,3214.6,3213.9,0.00466374]
[1768786089051,3.30264295,3215.7,3213.9,3.55339396]
[1768786089548,0.00310833,3215.7,3214.2,3.39309022]
[1768786089755,0.00310833,3215.7,3214.4,3.39309022]
[1768786090051,0.00310833,3215.7,3214.4,1.79]
[1768786090255,0.00310833,3215.7,3214.1,1.79]
[1768786090644,3.30264295,3215.7,3214.1,1.79]
[1768786091050,3.30264295,3215.7,3214.0,1.79]
[1768786092758,3.30264295,3215.7,3213.9,1.79466374]
[1768786092960,3.29953462,3215.5,3213.9,0.00466374]
[1768786094358,3.29953462,3215.3,3213.9,0.00466374]
[1768786095557,3.29953462,3215.1,3213.9,0.00466374]
[1768786096264,4.21063404,3215.0,3213.9,0.00466374]
[1768786096467,3.29953462,3215.0,3213.9,0.00466374]
[1768786098060,3.29953462,3214.7,3213.3,0.00240366]
[1768786098267,3.29953462,3214.5,3213.3,0.00240366]
[1768786099461,3.29953462,3214.3,3212.6,1.79]
[1768786099964,3.29953462,3214.3,3212.1,3.54882022]
[1768786100164,3.29953462,3214.1,3212.1,3.54882022]
[1768786100459,3.29953462,3213.9,3212.2,1.79]
[1768786100860,0.00466374,3213.4,3212.1,3.55137355]
[1768786101063,0.00850007,3213.4,3212.2,1.79]
[1768786101463,0.00850007,3213.4,3212.4,0.00466374]
[1768786105165,3.39198341,3213.4,3212.4,0.00466374]
[1768786108260,0.00850007,3213.4,3212.4,0.00466374]
[1768786111576,0.00850007,3213.4,3212.4,3.52056225]
[1768786112576,0.83083342,3214.7,3212.8,3.51589851]
[1768786112761,0.90967934,3214.6,3212.9,1.79]
[1768786112966,0.90967934,3214.5,3212.9,1.79]
[1768786113277,0.83083342,3214.7,3212.9,1.79]
[1768786113278,0.90967934,3214.4,3212.9,1.79]
[1768786113573,0.00346118,3214.4,3212.9,1.79]
[1768786114776,0.00346118,3214.4,3212.9,5.30589851]
[1768786115473,0.00346118,3214.4,3212.8,0.15569]
[1768786115668,3.38694452,3214.4,3212.9,1.79]
[1768786115865,3.38694452,3214.4,3212.8,0.15569]
[1768786116179,3.38694452,3214.4,3212.9,1.399]
[1768786116475,3.38694452,3214.4,3212.8,0.15569]
[1768786116675,3.38694452,3214.4,3212.8,1.78269]
[1768786117978,3.38694452,3214.4,3212.8,1.94569]
[1768786118170,0.91145059,3214.3,3212.8,1.94569]
[1768786118370,3.38694452,3214.4,3212.8,1.94569]
[1768786119184,0.91254727,3214.3,3212.9,3.6025234]
[1768786119369,0.00346118,3214.4,3213.2,3.4468334]
[1768786119672,0.00466374,3214.1,3213.4,0.15566]
[1768786119878,0.00346118,3214.4,3213.4,3.6024934]
[1768786120079,0.00346118,3214.4,3213.5,3.6024934]
[1768786120285,0.00346118,3214.4,3213.7,3.4468334]
[1768786120467,0.83083342,3215.3,3213.7,3.4468334]
[1768786120670,3.36814684,3215.2,3212.4,0.00466374]
[1768786120872,3.36814684,3214.2,3212.5,3.4468334]
[1768786121082,4.28162307,3214.1,3212.4,1.79]
[1768786121270,0.00466374,3213.7,3212.4,1.79]
[1768786121477,0.00825705,3213.7,3212.4,1.79]
[1768786121683,0.9134089,3213.6,3212.1,0.15827333]
[1768786121873,0.00825705,3213.7,3212.2,1.79]
[1768786122069,0.91341106,3213.6,3212.2,1.79]
[1768786122273,0.00825705,3213.7,3212.2,1.79]
[1768786122483,0.91349196,3213.6,3212.6,0.00466374]
[1768786122684,0.00825705,3213.7,3212.6,0.00466374]
[1768786122872,0.91324509,3213.6,3212.6,0.00466374]
[1768786123076,0.00825705,3213.7,3212.6,0.00466374]
[1768786123277,0.91304546,3213.6,3212.6,0.00466374]
[1768786123477,0.00825705,3213.7,3212.6,0.00466374]
[1768786123678,0.91337215,3213.6,3212.6,0.00466374]
[1768786123884,0.00825705,3213.7,3212.6,0.00466374]
[1768786124090,0.91335726,3213.6,3212.6,0.00466374]
[1768786124382,0.00825705,3213.7,3212.6,0.00466374]
[1768786127183,0.91317697,3213.6,3212.6,0.00466374]
[1768786127384,0.91317697,3213.5,3212.6,0.00466374]
[1768786127583,0.00825705,3213.7,3212.6,0.00466374]
[1768786128084,0.00825705,3213.7,3212.6,3.45149714]
[1768786130286,0.00825705,3213.7,3212.7,1.79]
[1768786134793,0.00825705,3213.7,3212.7,5.07438163]
[1768786134997,0.83083342,3214.6,3213.0,3.28438163]
[1768786135290,3.32009716,3214.9,3212.6,3.44474537]
[1768786135485,3.32009716,3214.6,3212.6,3.44474537]
[1768786135686,0.83083342,3214.4,3212.7,4.904]
[1768786135887,0.91386322,3214.4,3212.7,4.904]
[1768786136088,0.91386322,3214.3,3212.7,4.904]
[1768786136291,0.00278027,3214.4,3212.6,3.44474537]
[1768786136493,0.91408922,3214.3,3212.7,4.904]
[1768786136798,3.32287743,3214.4,3212.8,1.791]
[1768786137096,0.91421352,3214.3,3212.8,1.791]
[1768786137296,0.91421352,3214.2,3212.9,1.791]
[1768786137597,0.91421352,3214.1,3212.9,1.791]
[1768786137899,4.15371085,3214.4,3212.9,1.791]
[1768786138200,0.91488437,3214.3,3212.9,1.791]
[1768786138403,0.91488437,3214.2,3212.9,1.791]
[1768786138595,0.91488437,3214.1,3212.6,3.44474537]
[1768786138901,4.15371085,3214.4,3213.0,1.791]
[1768786139109,0.91537409,3214.3,3213.0,1.791]
[1768786139307,0.91537409,3214.2,3213.0,1.791]
[1768786139507,0.91537409,3214.1,3213.0,1.791]
[1768786139807,4.15371085,3214.4,3213.0,1.791]
[1768786140006,0.915697,3214.3,3213.0,1.791]
[1768786140207,0.915697,3214.2,3213.0,1.791]
[1768786140408,0.915697,3214.1,3213.0,1.791]
[1768786140606,0.915697,3214.0,3212.6,3.44474537]
[1768786140806,0.83083342,3214.3,3212.7,1.79]
[1768786141009,1.74592748,3214.3,3212.7,1.79]
[1768786141610,0.91509406,3214.2,3212.7,5.07438163]
[1768786141908,0.91509406,3214.1,3212.7,5.07438163]
[1768786142109,4.15371085,3214.4,3212.7,5.07438163]
[1768786142309,0.91525899,3214.3,3212.7,5.07438163]
[1768786142608,0.91525899,3214.2,3212.7,3.28438163]
[1768786142909,0.91525899,3214.1,3212.8,1.79]
[1768786143206,3.32009716,3214.3,3212.8,1.79]
[1768786143511,0.91546286,3214.2,3212.8,1.79]
[1768786143710,3.32009716,3214.3,3212.8,1.79]
[1768786143711,0.91546286,3214.1,3212.8,1.79]
[1768786144007,3.32009716,3214.3,3212.8,1.79]
[1768786144207,0.9151468,3214.2,3212.8,1.79]
[1768786144398,0.9151468,3214.1,3212.8,1.79]
[1768786144712,3.32009716,3214.3,3212.9,1.79]
[1768786144913,0.91558034,3214.2,3212.9,1.79]
[1768786145102,0.91558034,3214.1,3212.9,1.79]
[1768786145303,3.32009716,3214.3,3212.9,1.79]
[1768786145613,0.91576449,3214.2,3213.0,1.79]
[1768786145814,0.91576449,3214.1,3213.0,1.79]
[1768786146017,3.32009716,3214.3,3213.0,1.79]
[1768786146312,5.06667301,3214.2,3213.0,1.79]
[1768786146502,0.91574243,3214.1,3213.0,1.79]
[1768786146698,0.91574243,3214.0,3213.0,1.79]
[1768786146898,5.44308163,3214.2,3213.0,1.79]
[1768786147111,0.91569719,3214.1,3213.0,1.79]
[1768786147311,0.91569719,3214.0,3212.7,1.29215105]
[1768786147517,4.61224821,3214.2,3212.8,1.79]
[1768786147812,4.23578157,3214.1,3212.6,0.16036374]
[1768786148004,1.29215105,3213.9,3212.7,1.79]
[1768786148816,1.29215105,3213.9,3212.6,0.00466374]
[1768786149016,3.32009716,3214.1,3212.7,1.79]
[1768786149308,4.23564539,3214.0,3212.7,1.79]
[1768786149516,0.91554823,3213.9,3212.7,1.79]
[1768786150912,4.15093058,3213.5,3212.1,0.00255333]
[1768786151114,0.91554823,3213.4,3212.1,0.00255333]
[1768786152117,0.91554823,3213.4,3212.4,0.00466374]
[1768786152619,4.23564539,3213.4,3212.4,0.00466374]
[1768786152818,0.91554823,3213.3,3212.4,0.00466374]
[1768786153015,0.91554823,3213.3,3212.1,0.00255333]
[1768786153315,0.00466374,3213.2,3212.1,0.00255333]
[1768786153816,3.3247609,3213.2,3212.1,0.00255333]
[1768786154211,0.91851003,3213.1,3212.1,0.00255333]
[1768786154413,3.3247609,3213.2,3212.1,0.00255333]
[1768786154610,0.91817365,3213.1,3212.1,0.00255333]
[1768786154818,3.3247609,3213.2,3212.1,0.00255333]
[1768786155017,0.91832548,3213.1,3212.1,0.00255333]
[1768786155320,3.3247609,3213.2,3212.1,0.00255333]
[1768786155613,0.91830079,3213.1,3212.1,0.00255333]
[1768786155813,0.91808683,3213.0,3212.1,0.00255333]
[1768786156005,3.3247609,3213.2,3212.1,0.00255333]
[1768786156204,0.91815119,3213.1,3212.1,0.00255333]
[1768786156412,3.3247609,3213.2,3212.1,0.00255333]
[1768786156605,0.91801436,3213.1,3212.1,0.00255333]
[1768786156807,3.3247609,3213.2,3212.1,0.00255333]
[1768786157017,0.91806838,3213.1,3212.1,0.00255333]
[1768786157203,3.3247609,3213.2,3212.1,0.00255333]
[1768786157402,0.91781177,3213.1,3212.1,0.00255333]
[1768786157607,3.3247609,3213.2,3212.1,0.00255333]
[1768786157812,0.9179695,3213.1,3212.1,0.00255333]
[1768786158120,0.00466374,3213.2,3212.1,0.00255333]
[1768786158314,0.91774902,3213.1,3212.1,0.00255333]
[1768786158614,0.00466374,3213.2,3212.1,0.00255333]
[1768786158812,0.91745823,3213.1,3212.3,0.00466374]
[1768786159019,0.00466374,3213.2,3212.3,0.00466374]
[1768786159208,0.91748856,3213.1,3212.3,0.00466374]
[1768786159407,0.00466374,3213.2,3212.1,0.00255333]
[1768786159720,0.91729624,3213.1,3212.1,0.00255333]
[1768786159910,0.00466374,3213.2,3212.1,0.00255333]
[1768786160110,0.91708695,3213.1,3212.1,0.00255333]
[1768786160420,0.00466374,3213.2,3212.1,0.00255333]
[1768786160618,0.91677002,3213.1,3212.1,0.00255333]
[1768786160816,0.00466374,3213.2,3212.1,0.00255333]
[1768786161113,0.91676723,3213.1,3212.1,0.00255333]
[1768786161315,0.00466374,3213.2,3212.1,0.00255333]
[1768786166416,0.00466374,3213.2,3212.1,3.35490421]
[1768786166816,3.40323488,3213.2,3212.1,0.00255333]
[1768786168522,4.31628317,3213.1,3212.1,0.00255333]
[1768786168722,3.39857114,3213.1,3212.1,0.00255333]
[1768786169817,3.39857114,3213.1,3211.5,1.79]
[1768786170018,4.31627971,3213.0,3211.5,1.79]
[1768786170218,3.39857114,3213.0,3211.5,1.79]
[1768786170716,0.91769713,3212.9,3211.5,1.79271651]
[1768786170917,3.39857114,3213.0,3211.5,1.79271651]
[1768786171119,0.91751275,3212.9,3211.5,1.79271651]
[1768786171321,0.91746435,3212.8,3211.5,1.79271651]
[1768786171514,3.39857114,3213.0,3211.5,1.79271651]
[1768786171716,0.91747302,3212.9,3211.5,1.79271651]
[1768786171928,0.91747302,3212.8,3211.5,1.79271651]
[1768786172132,3.39857114,3213.0,3211.5,1.79271651]
[1768786172325,0.91752912,3212.9,3211.5,1.79271651]
[1768786172524,0.91752912,3212.8,3211.5,1.79271651]
[1768786172718,3.39857114,3213.0,3211.5,1.79271651]
[1768786172914,0.91752649,3212.9,3211.5,1.79271651]
[1768786173117,0.91752649,3212.8,3211.5,1.79271651]
[1768786173326,3.39857114,3213.0,3211.5,1.79271651]
[1768786173528,0.91744057,3212.9,3211.5,1.79271651]
[1768786173826,0.91744057,3212.8,3211.5,1.79271651]
[1768786174026,3.39857114,3213.0,3211.5,1.79271651]
[1768786174229,0.91740314,3212.9,3211.5,1.79271651]
[1768786174427,0.91740314,3212.8,3211.5,1.79271651]
[1768786174723,3.39857114,3213.0,3211.5,1.79271651]
[1768786174925,0.91737373,3212.9,3211.5,1.79271651]
[1768786175125,0.91737373,3212.8,3211.5,1.79271651]
[1768786175330,3.39857114,3213.0,3211.5,1.79271651]
[1768786175631,0.91762847,3212.9,3211.5,1.79271651]
[1768786175830,0.91762847,3212.8,3211.5,1.79271651]
[1768786176029,3.39857114,3213.0,3211.5,5.14506739]
[1768786176228,0.91764779,3212.9,3211.5,5.14506739]
[1768786176423,3.39857114,3212.7,3211.4,1.44312482]